[Event "75th Argentine Women-ch 2024"]
[Site "Buenos Aires"]
[Date "2024.11.27"]
[Round "6.1"]
[White "Nejanky, Maisa"]
[Black "Adam, Ernestina"]
[Result "0-1"]
[ECO "B56"]
[WhiteElo "1928"]
[BlackElo "2154"]
[Annotator "RC"]
[PlyCount "76"]
[EventDate "2024.11.21"]
[EventType "swiss"]
[EventCountry "ARG"]
[SourceTitle "playchess.com"]
[Source "ChessBase"]
[SourceQuality "1"]
[TimeControl "5400+30"]

1. e4 {[%emt 0:00:05]} c5 {[%emt 0:00:06]} 2. Nf3 {[%emt 0:00:09]} d6 {[%emt 0:00:06]} 3. d4 {[%emt 0:00:11]} cxd4 {[%emt 0:00:08]} 4. Nxd4 {[%emt 0:00:11]} Nf6 {[%emt 0:00:08]} 5. Nc3 {[%emt 0:00:09]} Nc6 {[%emt 0:00:06]} 6. Be3 {[%emt 0:00:28]} Ng4 {[%emt 0:01:02]} 7. Bb5 {[%emt 0:00:25]} Nxe3 {[%emt 0:00:41]} 8. fxe3 {[%emt 0:00:22]} Bd7 {[%emt 0:00:34]} 9. O-O {[%emt 0:00:39]} e6 {[%emt 0:01:31]} 10. Bxc6 {[%emt 0:01:13]} bxc6 {[%emt 0:00:08]} 11. Qf3 {[%emt 0:12:37]} Qf6 {[%emt 0:01:50]} 12. Qe2 {[%emt 0:01:03]} Qg5 {[%emt 0:03:38]} 13. Rf3 {[%emt 0:04:07]} Qd8 {[%emt 0:01:41]} 14. Raf1 {[%emt 0:09:47]} f6 {[%emt 0:00:33]} 15. Rg3 {[%emt 0:18:02]} g6 {[%emt 0:11:32]} 16. Qc4 {[%emt 0:12:46]} d5 {[%emt 0:05:00]} 17. exd5 {[%emt 0:01:05]} cxd5 {[%emt 0:09:02]} 18. Nxd5 {[%emt 0:15:36]} exd5 {[%emt 0:02:34]} 19. Qxd5 {[%emt 0:00:08]} Be7 {[%emt 0:05:25]} 20. e4 {[%emt 0:09:08]} Rc8 {[%emt 0:04:25]} 21. Rd3 {[%emt 0:06:49]} Rc5 {[%emt 0:07:47]} 22. Qb7 {[%emt 0:03:15]} Qb6 {[%emt 0:02:35]} 23. Qxb6 {[%emt 0:02:50]} axb6 {[%emt 0:00:02]} 24. Rb3 {[%emt 0:00:42]} b5 {[%emt 0:02:57]} 25. Ra3 {[%emt 0:00:37]} Rc8 {[%emt 0:00:43]} 26. Rd3 {[%emt 0:00:20]} O-O {[%emt 0:01:03]} 27. Nb3 {[%emt 0:00:27]} Be6 {[%emt 0:00:23]} 28. Rd2 {[%emt 0:00:32]} Bxb3 {[%emt 0:04:41]} 29. axb3 {[%emt 0:00:09]} Rfd8 {[%emt 0:01:18]} 30. Re2 {[%emt 0:00:52]} Bc5+ {[%emt 0:00:52]} 31. Kh1 {[%emt 0:00:06]} Bd4 {[%emt 0:00:05]} 32. c3 {[%emt 0:00:17]} Be5 {[%emt 0:00:05]} 33. g3 {[%emt 0:00:12]} Rd3 {[%emt 0:01:03]} 34. Kg2 {[%emt 0:01:07]} b4 {[%emt 0:01:04]} 35. cxb4 {[%emt 0:00:52]} Rxb3 {[%emt 0:00:07]} 36. Rb1 {[%emt 0:00:29]} Rxb4 {[%emt 0:00:07]} 37. Kf3 {[%emt 0:00:21]} Rcb8 {[%emt 0:00:10]} 38. h4 {[%emt 0:00:44]} Rb3+ {[%emt 0:01:26]} 0-1

[Event "75th Argentine Women-ch 2024"]
[Site "Buenos Aires"]
[Date "2024.11.27"]
[Round "6.2"]
[White "Campos, Maria Jose"]
[Black "Brizzi, Milagros Tatiana"]
[Result "1/2-1/2"]
[ECO "D23"]
[WhiteElo "2272"]
[BlackElo "2114"]
[Annotator "RC"]
[PlyCount "77"]
[EventDate "2024.11.21"]
[EventType "swiss"]
[EventCountry "ARG"]
[SourceTitle "playchess.com"]
[Source "ChessBase"]
[SourceQuality "1"]
[TimeControl "5400+30"]

1. c4 {[%emt 0:00:09]} c6 {[%emt 1:31:00]} 2. Nf3 {[%emt 1:31:21]} d5 {[%emt 0:00:00]} 3. d4 {[%emt 0:00:00]} Nf6 {[%emt 0:00:00]} 4. Qb3 {[%emt 0:00:00]} dxc4 {[%emt 0:00:00]} 5. Qxc4 {[%emt 0:01:30]} Bf5 {[%emt 0:00:00]} 6. g3 {[%emt 0:00:00]} e6 {[%emt 0:00:00]} 7. Bg2 {[%emt 0:00:00]} Be7 {[%emt 0:00:00]} 8. O-O {[%emt 0:00:00]} O-O {[%emt 0:00:00]} 9. Qb3 {[%emt 0:00:00]} Qb6 {[%emt 0:00:00]} 10. Nbd2 {[%emt 0:00:00]} Nbd7 {[%emt 0:00:00]} 11. Nc4 {[%emt 0:03:00]} Qa6 {[%emt 0:00:00]} 12. Bf4 {[%emt 0:00:30]} Nd5 {[%emt 0:00:00]} 13. Bd6 {[%emt 0:00:00]} Bxd6 {[%emt 0:00:00]} 14. Nxd6 {[%emt 0:00:00]} Qxe2 {[%emt 0:00:00]} 15. Qxb7 {[%emt 0:00:00]} N7b6 {[%emt 0:00:00]} 16. Ne5 {[%emt 0:00:00]} Bg6 {[%emt 0:00:00]} 17. b3 {[%emt 0:00:00]} Rad8 {[%emt 0:00:00]} 18. Qxc6 {[%emt 0:00:00]} Qb2 {[%emt 0:00:00]} 19. Qc5 {[%emt 0:00:00]} Nc3 {[%emt 0:00:00]} 20. Nc6 {[%emt 0:00:00]} Rd7 {[%emt 0:00:00]} 21. Nc4 {[%emt 0:00:00]} Nxc4 {[%emt 0:00:00]} 22. bxc4 {[%emt 0:00:00]} Be4 {[%emt 0:00:00]} 23. Bxe4 {[%emt 0:00:00]} Nxe4 {[%emt 0:00:00]} 24. Ne7+ {[%emt 0:00:00]} Kh8 {[%emt 0:02:06]} 25. Ng6+ {[%emt 0:00:00]} hxg6 {[%emt 0:00:05]} 26. Qxf8+ {[%emt 0:00:00]} Kh7 {[%emt 0:00:03]} 27. Rab1 {[%emt 0:00:00]} Qxd4 {[%emt 0:02:47]} 28. Rb8 {[%emt 0:00:00]} g5 {[%emt 0:00:38]} 29. Qh8+ {[%emt 0:00:00]} Kg6 {[%emt 0:00:06]} 30. Rg8 {[%emt 0:00:00]} Nd2 {[%emt 0:02:21]} 31. h4 {[%emt 0:09:30]} gxh4 {[%emt 0:03:11]} 32. Rd1 {[%emt 0:00:00]} Nf3+ {[%emt 0:02:30]} 33. Kg2 {[%emt 0:00:00]} Qxd1 {[%emt 0:01:00]} 34. Qxg7+ {[%emt 0:00:00]} Kf5 {[%emt 0:00:04]} 35. Qg4+ {[%emt 0:00:00]} Kf6 {[%emt 0:00:16]} 36. Qg7+ {[%emt 0:00:40]} Ke7 {[%emt 0:00:24]} 37. Qf8+ {[%emt 0:00:21]} Kf6 {[%emt 0:00:05]} 38. Qg7+ {[%emt 0:01:02]} Ke7 {[%emt 0:00:04]} 39. Qf8+ {[%emt 0:00:22]} 1/2-1/2

[Event "75th Argentine Women-ch 2024"]
[Site "Buenos Aires"]
[Date "2024.11.27"]
[Round "6.3"]
[White "Zuriel, Marisa"]
[Black "Amura, Claudia"]
[Result "1/2-1/2"]
[ECO "B06"]
[WhiteElo "2163"]
[BlackElo "2183"]
[Annotator "RC"]
[PlyCount "71"]
[EventDate "2024.11.21"]
[EventType "swiss"]
[EventCountry "ARG"]
[SourceTitle "playchess.com"]
[Source "ChessBase"]
[SourceQuality "1"]
[TimeControl "5400+30"]

1. e4 {[%emt 0:05:05]} g6 {[%emt 0:00:37]} 2. d4 {[%emt 0:00:22]} Bg7 {[%emt 0:00:09]} 3. Nc3 {[%emt 0:00:10]} a6 {[%emt 0:00:13]} 4. a4 {[%emt 0:01:43]} d6 {[%emt 0:00:57]} 5. Be3 {[%emt 0:00:49]} Nc6 {[%emt 0:00:25]} 6. Qd2 {[%emt 0:01:22]} e5 {[%emt 1:31:09]} 7. d5 {[%emt 0:10:58]} Nce7 {[%emt 0:00:00]} 8. Nge2 {[%emt 0:00:38]} f5 {[%emt 0:00:00]} 9. f4 {[%emt 0:08:07]} Nf6 {[%emt 0:00:00]} 10. fxe5 {[%emt 0:27:01]} dxe5 {[%emt 0:00:00]} 11. Bh6 {[%emt 0:00:45]} O-O {[%emt 0:00:00]} 12. Bxg7 {[%emt 0:00:41]} Kxg7 {[%emt 0:00:00]} 13. exf5 {[%emt 0:00:40]} Nxf5 {[%emt 0:00:00]} 14. h3 {[%emt 0:03:46]} c6 {[%emt 0:00:00]} 15. g4 {[%emt 0:06:34]} Nh4 {[%emt 0:00:00]} 16. O-O-O {[%emt 0:00:45]} Nf3 {[%emt 0:00:00]} 17. Qe3 {[%emt 0:09:55]} Nxd5 {[%emt 0:00:00]} 18. Nxd5 {[%emt 0:00:23]} cxd5 {[%emt 0:00:00]} 19. Bg2 {[%emt 0:00:07]} d4 {[%emt 0:00:00]} 20. Qe4 {[%emt 0:00:05]} Qg5+ {[%emt 0:00:00]} 21. Kb1 {[%emt 0:00:06]} Nd2+ {[%emt 0:00:00]} 22. Rxd2 {[%emt 0:00:18]} Qxd2 {[%emt 0:00:00]} 23. Qxe5+ {[%emt 0:00:22]} Kh6 {[%emt 0:00:00]} 24. Qe7 {[%emt 0:05:58]} Bd7 {[%emt 0:00:00]} 25. Bxb7 {[%emt 0:05:06]} Rae8 {[%emt 0:00:00]} 26. g5+ {[%emt 0:01:38]} Qxg5 {[%emt 0:00:00]} 27. Qxd7 {[%emt 0:01:07]} Rxe2 {[%emt 0:00:00]} 28. Qxd4 {[%emt 0:00:18]} Rff2 {[%emt 0:00:00]} 29. h4 {[%emt 0:02:08]} Qf5 {[%emt 0:00:00]} 30. Rc1 {[%emt 0:01:51]} Rxc2 {[%emt 0:00:00]} 31. Rxc2 {[%emt 0:00:03]} Qxc2+ {[%emt 0:00:00]} 32. Ka2 {[%emt 0:00:03]} Re2 {[%emt 0:03:54]} 33. Qf4+ {[%emt 0:00:22]} Kg7 {[%emt 0:00:01]} 34. Qd4+ {[%emt 0:00:05]} Kh6 {[%emt 0:00:08]} 35. Qf4+ {[%emt 0:00:02]} Kg7 {[%emt 0:00:05]} 36. Qd4+ {[%emt 0:09:07]} 1/2-1/2

[Event "75th Argentine Women-ch 2024"]
[Site "Buenos Aires"]
[Date "2024.11.26"]
[Round "6.4"]
[White "Bosco, Giuliana"]
[Black "Montiel Marin, Micaela Agustina"]
[Result "1-0"]
[ECO "B89"]
[WhiteElo "1953"]
[BlackElo "1880"]
[Annotator "RC"]
[PlyCount "51"]
[EventDate "2024.11.21"]
[EventType "swiss"]
[EventCountry "ARG"]
[SourceTitle "playchess.com"]
[Source "ChessBase"]
[SourceQuality "1"]
[TimeControl "5400+30"]

1. e4 {[%emt 0:00:03]} c5 {[%emt 0:00:05]} 2. Nc3 {[%emt 0:00:07]} Nc6 {[%emt 0:00:10]} 3. Nge2 {[%emt 0:00:18]} d6 {[%emt 0:00:10]} 4. d4 {[%emt 0:00:16]} cxd4 {[%emt 0:01:34]} 5. Nxd4 {[%emt 0:00:10]} Nf6 {[%emt 0:00:23]} 6. Bc4 {[%emt 0:01:46]} e6 {[%emt 0:01:16]} 7. Be3 {[%emt 0:01:25]} Be7 {[%emt 0:00:36]} 8. Qe2 {[%emt 0:01:22]} a6 {[%emt 0:01:15]} 9. O-O-O {[%emt 0:03:21]} Qc7 {[%emt 0:03:36]} 10. Bb3 {[%emt 0:03:36]} Bd7 {[%emt 0:06:41]} 11. g4 {[%emt 0:09:04]} Nxd4 {[%emt 0:02:37]} 12. Bxd4 {[%emt 0:00:43]} e5 {[%emt 0:02:34]} 13. g5 {[%emt 0:03:26]} exd4 {[%emt 0:00:58]} 14. gxf6 {[%emt 0:00:08]} dxc3 {[%emt 0:05:54]} 15. fxe7 {[%emt 0:00:21]} cxb2+ {[%emt 0:00:37]} 16. Kxb2 {[%emt 0:00:10]} Kxe7 {[%emt 0:02:42]} 17. Qh5 {[%emt 0:05:27]} g6 {[%emt 0:02:23]} 18. Qg5+ {[%emt 0:01:05]} f6 {[%emt 0:01:30]} 19. Qh6 {[%emt 0:04:12]} Raf8 {[%emt 0:00:22]} 20. Rd4 {[%emt 0:04:00]} Bc6 {[%emt 0:29:10]} 21. Rhd1 {[%emt 0:02:41]} Kd8 {[%emt 0:00:30]} 22. Qh3 {[%emt 0:05:52]} Qe7 {[%emt 0:06:14]} 23. Rxd6+ {[%emt 0:08:19]} Kc7 {[%emt 0:00:01]} 24. Re6 {[%emt 0:00:11]} Qc5 {[%emt 0:00:22]} 25. Qg3+ {[%emt 0:00:30]} Kb6 {[%emt 0:02:27]} 26. Rd5 {[%emt 0:44:57]} 1-0

[Event "75th Argentine Women-ch 2024"]
[Site "Buenos Aires"]
[Date "2024.11.27"]
[Round "6.5"]
[White "Alvarez, Mia Morena"]
[Black "Ramirez, Marysol"]
[Result "1-0"]
[ECO "C55"]
[WhiteElo "1653"]
[BlackElo "1824"]
[Annotator "NA RC"]
[PlyCount "111"]
[EventDate "2024.11.21"]
[EventType "swiss"]
[EventCountry "ARG"]
[SourceTitle "playchess.com"]
[Source "ChessBase"]
[SourceQuality "1"]
[TimeControl "5400+30"]

1. e4 {[%emt 0:00:04]} e5 {[%emt 0:00:05]} 2. Nf3 {[%emt 0:00:10]} d6 {[%emt 0:00:05]} 3. Bc4 {[%emt 0:00:20]} Be7 {[%emt 0:00:11]} 4. c3 {[%emt 0:00:53]} Nf6 {[%emt 0:00:17]} 5. d3 {[%emt 0:00:16]} O-O {[%emt 0:00:09]} 6. O-O {[%emt 0:00:47]} Nc6 {[%emt 0:00:15]} 7. Nbd2 {[%emt 0:03:18]} Kh8 {[%emt 0:02:33] C55: Two Knights: 4 d3, 4 d4 exd4 5 e5 and Max Lange Attack.} 8. Re1 {[%emt 0:03:38]} Ng8 {[%emt 0:00:20]} 9. Nf1 {[%emt 0:00:24]} f5 {[%emt 0:02:56]} 10. exf5 {[%emt 0:04:50]} Bxf5 {[%emt 0:00:17]} 11. Ng3 {[%emt 0:00:20]} Bg4 {[%emt 0:04:47]} 12. Bd5 {[%emt 0:04:25]} Nf6 {[%emt 0:06:23]} 13. Bb3 {[%emt 0:03:16]} Nd7 {[%emt 0:02:26]} 14. Bd5 {[%emt 0:03:58]} Nb6 {[%emt 0:02:12]} 15. h3 {[%emt 0:07:36]} Nxd5 {[%emt 0:08:09]} 16. hxg4 {[%emt 0:00:24]} Qd7 {[%emt 0:12:31]} 17. g5 {[%emt 0:04:17]} Nf4 {[%emt 0:03:26]} 18. Bxf4 {[%emt 0:24:23]} Rxf4 {[%emt 0:00:33]} 19. b4 {[%emt 0:01:23]} (19. Re4 $11) 19... Qg4 {[%emt 0:11:47]} 20. b5 {[%emt 0:06:11]} Nd8 {[%emt 0:00:21]} 21. d4 {[%emt 0:14:47]} e4 {[%emt 0:08:17]} 22. Nd2 {[%emt 0:02:59]} (22. Qb3 $1 $14) 22... d5 {[%emt 0:03:44]} 23. Ne2 {[%emt 0:03:10]} Rf5 {[%emt 0:05:48]} 24. Nf1 {[%emt 0:01:18]} Rxg5 {[%emt 0:06:32]} 25. Ne3 {[%emt 0:00:30]} Qh4 {[%emt 0:01:33]} 26. Ng3 {[%emt 0:01:09]} g6 {[%emt 0:02:06]} 27. c4 {[%emt 0:02:32]} c6 {[%emt 0:01:10]} 28. cxd5 {[%emt 0:00:38]} cxd5 {[%emt 0:00:25]} 29. Qb3 {[%emt 0:01:29]} Bd6 {[%emt 0:02:22]} ({Much less strong is} 29... Ne6 30. Rad1 Bd6 31. Nef1 $19) 30. Nxd5 $2 {[%emt 0:01:32]} (30. Nef1) 30... Bxg3 {[%emt 0:01:51]} 31. fxg3 {[%emt 0:00:11]} Rxg3 {[%emt 0:00:17]} 32. Re3 {[%emt 0:00:20]} Rxe3 {[%emt 0:01:40]} 33. Qxe3 {[%emt 0:00:14]} Ne6 {[%emt 0:00:16]} 34. Nc3 {[%emt 0:00:20]} Ng5 {[%emt 0:02:17]} 35. d5 {[%emt 0:00:41]} Kg7 {[%emt 0:00:27]} 36. d6 {[%emt 0:00:52]} Qg4 {[%emt 0:00:28]} 37. Qd4+ {[%emt 0:00:21]} Kh6 {[%emt 0:00:08]} 38. Qe3 {[%emt 0:00:54]} Rf8 {[%emt 0:04:27]} 39. Rf1 {[%emt 0:01:47]} Rf3 {[%emt 0:02:54]} 40. Qe2 {[%emt 0:02:25]} Nh3+ {[%emt 0:02:57]} 41. Kh1 {[%emt 0:00:36]} Qh4 {[%emt 0:00:50]} 42. gxf3 {[%emt 0:00:44]} exf3 {[%emt 0:00:42]} 43. Qh2 {[%emt 0:00:16]} Qg4 {[%emt 0:00:34]} 44. Rg1 {[%emt 0:00:41]} Qe6 {[%emt 0:00:08]} 45. Qd2+ {[%emt 0:00:18]} g5 {[%emt 0:00:48]} 46. Re1 {[%emt 0:00:25]} Qg4 {[%emt 0:00:13]} 47. Qh2 {[%emt 0:00:54]} Kg6 {[%emt 0:00:23]} 48. Ne4 {[%emt 0:00:33]} Qf5 {[%emt 0:00:41]} 49. Nf2 {[%emt 0:00:11]} Nf4 {[%emt 0:00:29]} 50. Re7 {[%emt 0:00:38]} h5 {[%emt 0:00:35]} 51. d7 {[%emt 0:00:34]} Qd5 {[%emt 0:00:37]} 52. Qg1 {[%emt 0:00:30]} Ne2 {[%emt 0:00:30]} 53. Qd1 {[%emt 0:00:31]} Nd4 {[%emt 0:00:32]} 54. Qd3+ {[%emt 0:00:16]} Kf6 {[%emt 0:00:19]} 55. Re4 {[%emt 0:00:22]} Qxa2 {[%emt 0:00:43]} 56. d8=Q+ {[%emt 0:00:18]} 1-0

[Event "75th Argentine Women-ch 2024"]
[Site "Buenos Aires"]
[Date "2024.11.27"]
[Round "6.6"]
[White "Maggiolo, Elisa"]
[Black "Herrera, Solange"]
[Result "1-0"]
[ECO "C02"]
[WhiteElo "1922"]
[BlackElo "1880"]
[Annotator "RC"]
[PlyCount "55"]
[EventDate "2024.11.21"]
[EventType "swiss"]
[EventCountry "ARG"]
[SourceTitle "playchess.com"]
[Source "ChessBase"]
[SourceQuality "1"]
[TimeControl "5400+30"]

1. e4 {[%emt 0:01:45]} e6 {[%emt 0:00:08]} 2. d4 {[%emt 0:00:18]} d5 {[%emt 0:00:07]} 3. e5 {[%emt 0:00:22]} c5 {[%emt 0:00:42]} 4. c3 {[%emt 0:00:07]} Nc6 {[%emt 1:31:33]} 5. Nf3 {[%emt 1:30:28]} Qb6 {[%emt 0:00:30]} 6. a3 {[%emt 0:00:30]} c4 {[%emt 0:00:00]} 7. Nbd2 {[%emt 0:00:00]} Na5 {[%emt 0:00:00]} 8. Rb1 {[%emt 0:00:00]} Bd7 {[%emt 0:00:00]} 9. b4 {[%emt 0:01:30]} cxb3 {[%emt 0:00:00]} 10. Nxb3 {[%emt 0:00:30]} Nxb3 {[%emt 0:02:30]} 11. Nd2 {[%emt 0:00:00]} Rc8 {[%emt 0:00:30]} 12. Nxb3 {[%emt 0:00:00]} Ba4 13. Qc2 {[%emt 0:00:00]} Ne7 14. Qa2 {[%emt 0:00:00]} Bxb3 15. Rxb3 {[%emt 0:00:00]} Qc7 16. Qb1 {[%emt 0:00:00]} Rb8 17. Bd3 {[%emt 0:00:00]} Nc6 18. O-O {[%emt 0:00:00]} Be7 19. f4 {[%emt 0:04:30]} Na5 {[%emt 0:00:00]} 20. Bb5+ {[%emt 0:00:00]} Nc6 21. f5 {[%emt 0:00:00]} exf5 22. Qxf5 {[%emt 0:00:00]} O-O 23. Bd3 {[%emt 0:00:00]} g6 24. Qf3 {[%emt 0:00:00]} Na5 25. Rb5 {[%emt 0:00:00]} Qxc3 {[%emt 0:00:00]} 26. Rxd5 {[%emt 0:00:00]} Rbd8 {[%emt 0:00:00]} 27. Rxd8 Bxd8 28. Bh6 {[%emt 0:04:30]} 1-0

[Event "75th Argentine Women-ch 2024"]
[Site "Buenos Aires"]
[Date "2024.11.27"]
[Round "6.7"]
[White "Bossero, Ingrid"]
[Black "Gaite, Karen Nerina"]
[Result "1-0"]
[ECO "C54"]
[WhiteElo "1694"]
[BlackElo "1997"]
[Annotator "RC"]
[PlyCount "105"]
[EventDate "2024.11.21"]
[EventType "swiss"]
[EventCountry "ARG"]
[SourceTitle "playchess.com"]
[Source "ChessBase"]
[SourceQuality "1"]
[TimeControl "5400+30"]

1. e4 {[%emt 0:00:03]} e5 {[%emt 0:00:07]} 2. Nf3 {[%emt 0:00:12]} Nc6 {[%emt 0:00:06]} 3. Bc4 {[%emt 0:00:08]} Bc5 {[%emt 0:00:05]} 4. c3 {[%emt 0:00:27]} Nf6 {[%emt 0:00:10]} 5. d3 {[%emt 0:00:26]} a5 {[%emt 0:00:08]} 6. Bb3 {[%emt 0:01:06]} d6 {[%emt 0:00:45]} 7. O-O {[%emt 0:00:28]} O-O {[%emt 0:00:23]} 8. Bg5 {[%emt 0:01:10]} h6 {[%emt 0:00:30]} 9. Be3 {[%emt 0:03:27]} Bxe3 {[%emt 0:04:01]} 10. fxe3 {[%emt 0:00:04]} d5 {[%emt 0:00:10]} 11. exd5 {[%emt 0:01:53]} Nxd5 {[%emt 0:00:09]} 12. Qe1 {[%emt 0:01:25]} Be6 {[%emt 0:08:51]} 13. Nbd2 {[%emt 0:03:08]} a4 {[%emt 0:04:16]} 14. Bc2 {[%emt 0:02:24]} a3 {[%emt 0:00:29]} 15. Nc4 {[%emt 0:07:50]} axb2 {[%emt 0:01:32]} 16. Nxb2 {[%emt 0:00:08]} b5 {[%emt 0:07:37]} 17. d4 {[%emt 0:03:19]} Nde7 {[%emt 0:15:13]} 18. dxe5 {[%emt 0:06:28]} Rxa2 {[%emt 0:03:28]} 19. Rxa2 {[%emt 0:00:57]} Bxa2 {[%emt 0:00:07]} 20. Qa1 {[%emt 0:06:27]} Qa8 {[%emt 0:09:31]} 21. Nd4 {[%emt 0:04:03]} Nxe5 {[%emt 0:11:59]} 22. Nxb5 {[%emt 0:06:08]} c6 {[%emt 0:00:49]} 23. Nd4 {[%emt 0:01:40]} Nd5 {[%emt 0:04:03]} 24. Qe1 {[%emt 0:06:11]} Qa3 {[%emt 0:01:36]} 25. Nd1 {[%emt 0:01:58]} Bc4 {[%emt 0:04:37]} 26. Rf5 {[%emt 0:05:42]} f6 {[%emt 0:01:09]} 27. Rh5 {[%emt 0:11:10]} Ne7 {[%emt 0:03:46]} 28. Rh3 {[%emt 0:15:33]} Qc1 {[%emt 0:01:59]} 29. Bb3 {[%emt 0:02:00]} Rd8 {[%emt 0:03:25]} 30. Ne2 {[%emt 0:02:06]} Qd2 {[%emt 0:03:35]} 31. Bxc4+ {[%emt 0:06:35]} Qd5 {[%emt 0:00:19]} 32. Bxd5+ {[%emt 0:00:00]} Nxd5 {[%emt 0:00:01]} 33. Nd4 {[%emt 0:00:00]} Ne7 {[%emt 0:01:04]} 34. e4 {[%emt 0:00:00]} N7g6 {[%emt 0:00:22]} 35. Rg3 {[%emt 0:00:00]} Kf7 {[%emt 0:01:35]} 36. h3 {[%emt 0:00:03]} Nf4 {[%emt 0:00:32]} 37. Qf1 {[%emt 0:01:05]} g5 {[%emt 0:00:40]} 38. Re3 {[%emt 0:01:16]} c5 {[%emt 0:00:41]} 39. Nf5 {[%emt 0:00:15]} Kg6 {[%emt 0:00:30]} 40. Ne7+ {[%emt 0:00:11]} Kf7 {[%emt 0:00:16]} 41. Nd5 {[%emt 0:00:29]} Neg6 {[%emt 0:00:06]} 42. Nxf4 Nxf4 {[%emt 0:00:02]} 43. Kh2 {[%emt 0:00:52]} Rd2 {[%emt 0:00:20]} 44. Nf2 {[%emt 0:01:10]} h5 {[%emt 0:00:15]} 45. g3 {[%emt 0:00:34]} Ne6 {[%emt 0:00:25]} 46. Re2 {[%emt 0:00:17]} Rd7 {[%emt 0:00:24]} 47. Ra2 {[%emt 0:00:24]} h4 {[%emt 0:00:12]} 48. gxh4 {[%emt 0:00:09]} Nf4 {[%emt 0:00:25]} 49. Qc4+ {[%emt 0:00:11]} Kg7 {[%emt 0:00:28]} 50. hxg5 fxg5 {[%emt 0:00:01]} 51. e5 {[%emt 0:00:39]} Re7 {[%emt 0:02:17]} 52. Qxc5 {[%emt 0:00:12]} Ng6 {[%emt 0:00:01]} 53. Ra7 {[%emt 0:00:15]} 1-0

[Event "75th Argentine Women-ch 2024"]
[Site "Buenos Aires"]
[Date "2024.11.27"]
[Round "6.8"]
[White "Perez Lascano, Lucila"]
[Black "Palomares, Lujan"]
[Result "1-0"]
[ECO "B14"]
[WhiteElo "1593"]
[BlackElo "1633"]
[Annotator "NA RC"]
[PlyCount "93"]
[EventDate "2024.11.21"]
[EventType "swiss"]
[EventCountry "ARG"]
[SourceTitle "playchess.com"]
[Source "ChessBase"]
[SourceQuality "1"]
[TimeControl "5400+30"]

1. e4 {[%emt 0:00:03]} c6 {[%emt 0:05:28]} 2. d4 {[%emt 0:00:10]} d5 {[%emt 0:00:23]} 3. exd5 {[%emt 0:00:09]} cxd5 {[%emt 0:00:21]} 4. c4 {[%emt 0:00:07]} Nf6 {[%emt 0:01:17]} 5. Nc3 {[%emt 0:00:12]} g6 {[%emt 0:20:09]} 6. Qb3 {[%emt 0:00:43]} e6 {[%emt 0:03:14]} 7. Nf3 {[%emt 0:01:15]} Nc6 {[%emt 0:03:12]} 8. c5 {[%emt 0:02:40]} a6 {[%emt 0:03:46]} 9. Bf4 {[%emt 0:07:40]} Bg7 {[%emt 0:02:25]} 10. Be2 {[%emt 0:07:15]} O-O {[%emt 0:01:43]} 11. O-O {[%emt 0:01:29]} Ne4 {[%emt 0:19:54]} 12. Rad1 {[%emt 0:10:41]} Re8 {[%emt 0:09:00]} 13. Na4 {[%emt 0:21:03]} e5 {[%emt 0:20:35]} 14. dxe5 {[%emt 0:11:04]} Nxe5 {[%emt 0:00:38]} 15. Bxe5 {[%emt 0:04:31]} Bxe5 {[%emt 0:00:48]} 16. Rxd5 {[%emt 0:00:50]} Qf6 {[%emt 0:01:25]} 17. Nxe5 {[%emt 0:09:06]} Rxe5 {[%emt 0:02:11]} 18. Rxe5 {[%emt 0:02:17]} Qxe5 {[%emt 0:00:07]} 19. Qc2 {[%emt 0:01:36]} Bf5 {[%emt 0:01:17]} 20. Bd3 {[%emt 0:01:26]} Nxc5 {[%emt 0:01:37]} 21. Bxf5 {[%emt 0:03:29]} Nxa4 {[%emt 0:00:40]} 22. Qxa4 {[%emt 0:01:25]} Qxf5 {[%emt 0:00:06]} 23. Rd1 {[%emt 0:00:48]} Rc8 {[%emt 0:00:16]} 24. Qd4 {[%emt 0:02:11]} Qb5 {[%emt 0:00:49]} 25. h3 {[%emt 0:02:50]} Rc2 {[%emt 0:00:45]} 26. Rd2 {[%emt 0:01:34]} Rc1+ {[%emt 0:00:39]} 27. Rd1 {[%emt 0:02:23]} Rxd1+ {[%emt 0:00:16]} 28. Qxd1 {[%emt 0:00:09]} Qxb2 {[%emt 0:00:07]} 29. a4 {[%emt 0:01:15]} b5 {[%emt 0:00:22]} 30. Qd8+ {[%emt 0:00:43]} Kg7 {[%emt 0:00:09]} 31. a5 {[%emt 0:00:29]} Qa1+ {[%emt 0:00:31]} 32. Kh2 {[%emt 0:00:07]} Qe5+ {[%emt 0:00:23]} 33. g3 {[%emt 0:00:34]} b4 {[%emt 0:01:25]} 34. Qb6 {[%emt 0:00:35]} Qb2 {[%emt 0:00:09]} 35. Kg2 {[%emt 0:01:59]} b3 {[%emt 0:00:12]} 36. Qxa6 {[%emt 0:01:00]} Qd4 {[%emt 0:00:19]} 37. Qb7 {[%emt 0:00:38]} Qa4 {[%emt 0:01:26]} 38. a6 {[%emt 0:00:30]} b2 {[%emt 0:00:31]} 39. Qxb2+ {[%emt 0:00:12]} Kh6 {[%emt 0:00:18]} 40. Qd2+ {[%emt 0:00:33]} Kg7 {[%emt 0:00:22]} 41. Qc3+ {[%emt 0:00:30]} Kh6 {[%emt 0:00:21]} 42. Qe3+ {[%emt 0:00:23]} Kg7 {[%emt 0:00:13]} 43. a7 {[%emt 0:00:43]} Qc6+ {[%emt 0:00:19]} 44. Kh2 {[%emt 0:00:17]} Qa8 {[%emt 0:00:09]} 45. Qb6 {[%emt 0:00:32]} Qf3 {[%emt 0:00:36]} 46. Qd4+ {[%emt 0:00:11]} Kg8 {[%emt 0:00:37]} 47. Qd8+ {[%emt 0:00:33]} 1-0

[Event "75th Argentine Women-ch 2024"]
[Site "Buenos Aires"]
[Date "2024.11.26"]
[Round "6.9"]
[White "Quiroga Ortiz, Isabella"]
[Black "Macuri, Genesis"]
[Result "1-0"]
[ECO "C42"]
[WhiteElo "1508"]
[BlackElo "1449"]
[Annotator "NA RC"]
[PlyCount "43"]
[EventDate "2024.11.21"]
[EventType "swiss"]
[EventCountry "ARG"]
[SourceTitle "playchess.com"]
[Source "ChessBase"]
[SourceQuality "1"]
[TimeControl "5400+30"]

1. e4 {[%emt 0:12:26]} e5 {[%emt 0:00:11]} 2. Nf3 {[%emt 0:00:26]} d6 {[%emt 0:00:08]} 3. Bc4 {[%emt 0:00:26]} Nf6 {[%emt 0:00:20]} 4. Nc3 {[%emt 0:00:41]} Be7 {[%emt 0:00:09]} 5. d3 {[%emt 0:00:38]} O-O {[%emt 0:00:07]} 6. h3 {[%emt 0:01:17]} c5 {[%emt 0:00:07]} 7. Ne2 {[%emt 0:01:54]} Nc6 {[%emt 0:00:20]} 8. c3 {[%emt 0:02:59]} b6 {[%emt 0:01:43]} 9. O-O {[%emt 0:02:08]} Bb7 {[%emt 0:00:06]} 10. Ng3 {[%emt 0:00:29]} Qd7 {[%emt 0:03:44]} 11. Nf5 {[%emt 0:01:51]} g6 {[%emt 0:06:35]} 12. Bh6 {[%emt 0:01:41]} Rfe8 {[%emt 0:00:10]} 13. Nxe7+ {[%emt 0:10:09]} Qxe7 {[%emt 0:01:47]} 14. Ng5 {[%emt 0:02:29]} Nd8 {[%emt 0:00:55]} 15. f4 {[%emt 0:02:36]} exf4 {[%emt 0:01:11]} 16. Rxf4 {[%emt 0:01:25]} Ne6 {[%emt 0:01:22]} 17. Bxe6 {[%emt 0:03:49]} fxe6 {[%emt 0:00:17]} 18. Qf1 {[%emt 0:00:57]} Nd7 {[%emt 0:00:43]} 19. Rf7 {[%emt 0:00:22]} Qd8 {[%emt 0:00:34]} 20. Rg7+ {[%emt 0:00:13]} Kh8 {[%emt 0:00:38]} 21. Rxh7+ {[%emt 0:00:07]} Kg8 {[%emt 0:00:35]} 22. Qf7# {[%emt 0:00:05]} 1-0